bitfinex/quotes_SOLUSD_20240613
["timestamp","ask_amount","ask_price","bid_price","bid_amount"]
[1718260699076,9.55111744,151.25,151.23,2.4465]
[1718260700594,9.55111744,151.25,151.23,2.4464]
[1718260703289,9.55111744,151.25,151.24,2.4464]
[1718260703661,9.55111744,151.25,151.23,2.4465]
[1718260707277,17.94111744,151.29,151.24,2.4463]
[1718260707474,17.94111744,151.29,151.24,10.8363]
[1718260708783,17.94111744,151.29,151.24,8.39]
[1718260709400,17.94111744,151.29,151.23,2.4465]
[1718260709609,9.55111744,151.27,151.23,10.8365]
[1718260709969,9.55111744,151.29,151.24,53.39]
[1718260710172,9.55111744,151.29,151.24,8.39]
[1718260712291,9.55111744,151.29,151.26,2.446]
[1718260712591,17.94111744,151.31,151.26,2.446]
[1718260713000,9.55111744,151.31,151.26,10.836]
[1718260713612,17.94111744,151.31,151.26,10.836]
[1718260713972,17.94111744,151.31,151.26,8.39]
[1718260714285,17.94111744,151.31,151.25,11.0062]
[1718260714490,9.55111744,151.31,151.26,45.17]
[1718260714698,9.55111744,151.31,151.27,8.39]
[1718260715205,9.55111744,151.31,151.27,2.4459]
[1718260715407,17.94111744,151.31,151.27,2.4459]
[1718260716703,9.55111744,151.31,151.27,2.4459]
[1718260717504,9.55111744,151.31,151.26,53.39]
[1718260717709,9.55111744,151.31,151.27,8.39]
[1718260718002,9.55111744,151.31,151.29,2.4456]
[1718260718594,9.55111744,151.31,151.28,47.4457]
[1718260718889,9.55111744,151.31,151.28,2.4457]
[1718260719407,9.55111744,151.31,151.29,2.4455]
[1718260719882,9.55111744,151.33,151.29,47.4455]
[1718260720089,17.94111744,151.33,151.29,47.4455]
[1718260720490,17.94111744,151.33,151.29,45.0]
[1718260721503,9.55111744,151.33,151.29,45.0]
[1718260721810,17.94111744,151.33,151.29,45.0]
[1718260722201,9.55111744,151.33,151.29,45.0]
[1718260722406,17.94111744,151.33,151.29,45.0]
[1718260723112,9.55111744,151.31,151.28,47.6157]
[1718260723411,9.55111744,151.31,151.28,2.4457]
[1718260727020,8.39,151.32,151.29,2.4456]
[1718260727204,9.55111744,151.31,151.29,2.4456]
[1718260727808,9.55111744,151.31,151.28,2.4457]
[1718260733920,9.55111744,151.31,151.29,2.4455]
[1718260734926,9.55111744,151.33,151.28,8.56]
[1718260735235,17.94111744,151.35,151.3,2.4453]
[1718260735527,17.94111744,151.35,151.26,0.17]
[1718260735528,9.55111744,151.32,151.24,20.5968]
[1718260735695,17.94111744,151.3,151.26,2.446]
[1718260736106,8.39,151.3,151.26,2.446]
[1718260736309,17.94111744,151.3,151.26,2.446]
[1718260736491,17.94111744,151.3,151.27,2.4459]
[1718260738496,17.94111744,151.3,151.28,2.4457]
[1718260742119,17.94111744,151.3,151.26,0.17]
[1718260742326,17.94111744,151.3,151.26,0.68]
[1718260743006,8.39,151.27,151.21,4.8936]
[1718260743209,9.55111744,151.24,151.19,13.2843]
[1718260743423,8.39,151.24,151.19,4.8943]
[1718260743605,8.39,151.24,151.19,13.2843]
[1718260744013,8.39,151.24,151.19,4.8943]
[1718260744328,8.39,151.24,151.21,2.4468]
[1718260744622,17.94111744,151.24,151.21,2.4468]
[1718260745428,17.94111744,151.24,151.2,0.17]
[1718260745738,9.55111744,151.24,151.22,2.4466]
[1718260746026,9.55111744,151.24,151.2,54.07]
[1718260746413,9.55111744,151.24,151.22,2.4466]
[1718260746921,9.55111744,151.24,151.2,45.68]
[1718260747128,17.94111744,151.24,151.2,45.68]
[1718260747620,17.94111744,151.24,151.19,8.39]
[1718260747818,17.94111744,151.24,151.2,20.0]
[1718260748001,17.94111744,151.24,151.2,22.4469]
[1718260748400,9.55111744,151.24,151.19,22.4471]
[1718260748602,8.39,151.23,151.18,1.3283414]
[1718260748806,9.55111744,151.22,151.19,0.17]
[1718260749296,9.55111744,151.22,151.19,20.17]
[1718260749527,9.55111744,151.22,151.21,2.4469]
[1718260749703,8.39,151.23,151.21,2.4469]
[1718260750026,17.94111744,151.23,151.21,2.4469]
[1718260750226,17.94111744,151.23,151.2,47.447]
[1718260750414,17.94111744,151.23,151.2,2.447]
[1718260751103,9.55111744,151.23,151.18,0.8183414]
[1718260751305,8.39,151.2,151.18,0.8183414]
[1718260751723,8.39,151.19,151.18,0.8183414]
[1718260751930,17.94111744,151.19,151.18,0.8183414]
[1718260755233,24.55961744,151.19,151.18,0.8183414]
[1718260756512,44.55961744,151.19,151.18,0.8183414]
[1718260757909,24.55961744,151.19,151.18,0.8183414]
[1718260760615,81.13121744,151.19,151.18,0.8183414]
[1718260760938,9.55111744,151.15,151.09,2.4488]
[1718260761109,8.39,151.12,151.09,2.4488]
[1718260761306,63.5301,151.19,151.09,2.4488]
[1718260761307,9.55111744,151.15,151.09,2.4488]
[1718260761539,8.39,151.14,151.08,73.39]
[1718260761724,9.55111744,151.15,151.12,2.4483]
[1718260761928,17.94111744,151.15,151.12,2.4483]
[1718260762436,8.39,151.14,151.12,2.4483]
[1718260762735,9.55111744,151.13,151.12,2.4483]
[1718260763136,9.55111744,151.15,151.13,2.4481]
[1718260763316,9.55111744,151.15,151.1,4.8973]
[1718260763317,17.94111744,151.15,151.12,2.4483]
[1718260763747,9.55111744,151.13,151.12,2.4483]
[1718260764036,9.55111744,151.13,151.11,2.4484]
[1718260764840,9.55111744,151.13,151.09,20.0]
[1718260765027,8.39,151.12,151.09,2.4488]
[1718260765414,9.55111744,151.11,151.09,2.4488]
[1718260765842,9.55111744,151.11,151.08,2.4489]
[1718260766140,9.55111744,151.11,151.09,2.4488]
[1718260767027,9.55111744,151.11,151.08,2.4489]
[1718260767244,82.6801,151.19,151.06,22.4492]
[1718260767245,9.55111744,151.09,151.06,22.4492]
[1718260767440,17.94111744,151.09,151.06,2.4492]
[1718260768034,17.94111744,151.09,151.07,2.4491]
[1718260768262,9.55111744,151.09,151.07,2.4491]
[1718260769419,9.55111744,151.09,151.08,2.449]
[1718260769647,9.55111744,151.11,151.06,53.39]
[1718260769929,9.55111744,151.11,151.08,2.4488]
[1718260770138,17.94111744,151.11,151.07,2.4491]
[1718260770351,17.94111744,151.11,151.08,2.4489]
[1718260770352,9.55111744,151.11,151.08,2.4489]
[1718260770527,17.94111744,151.11,151.08,2.4489]
[1718260770732,8.39,151.1,151.07,2.4491]
[1718260771421,9.55111744,151.09,151.06,2.4492]
[1718260771647,17.94111744,151.09,151.05,20.0]
[1718260771837,17.94111744,151.09,151.05,22.4494]
[1718260772441,8.39,151.08,151.05,20.0]
[1718260772744,17.94111744,151.07,151.03,3.2680414]
[1718260773117,9.55111744,151.07,151.04,2.4496]
[1718260773337,9.55111744,151.09,151.04,2.4496]
[1718260773525,8.39,151.07,151.03,0.8183414]
[1718260773725,17.94111744,151.07,151.03,0.8183414]
[1718260775122,17.94111744,151.05,151.03,0.8183414]
[1718260775540,9.55111744,151.05,151.03,0.8183414]
[1718260775848,9.55111744,151.05,151.04,2.4496]
[1718260776036,9.55111744,151.05,151.03,3.2680414]
[1718260776952,9.55111744,151.05,151.04,2.4496]
[1718260777337,9.55111744,151.05,151.03,3.2680414]
[1718260777542,9.55111744,151.05,151.04,2.4496]
[1718260778053,9.55111744,151.05,151.03,3.2680414]
[1718260780636,9.55111744,151.05,151.04,2.4496]
[1718260780931,9.55111744,151.07,151.04,2.4495]
[1718260781144,9.55111744,151.07,151.03,9.2083414]
[1718260781145,8.39,151.06,151.03,0.8183414]
[1718260781322,9.55111744,151.07,151.03,0.8183414]
[1718260781529,8.39,151.06,151.03,0.8183414]
[1718260781741,9.55111744,151.05,151.03,0.8183414]
[1718260782460,17.94111744,151.05,151.03,0.8183414]
[1718260783460,9.55111744,151.05,151.03,0.8183414]
[1718260784051,9.55111744,151.05,151.04,2.4496]
[1718260784765,9.55111744,151.05,151.03,48.2680414]
[1718260785645,9.55111744,151.05,151.04,2.4496]
[1718260786147,9.55111744,151.05,151.03,45.8183414]
[1718260786352,9.55111744,151.07,151.03,45.8183414]
[1718260786562,9.55111744,151.07,151.03,9.2083414]
[1718260786936,9.55111744,151.07,151.04,2.4495]
[1718260787767,9.55111744,151.07,151.03,3.2680414]
[1718260788264,17.94111744,151.07,151.03,3.2680414]
[1718260788762,17.94111744,151.07,151.03,0.8183414]
[1718260790759,9.55111744,151.05,151.03,0.8183414]
[1718260791460,9.55111744,151.05,151.03,3.2681414]
[1718260791631,9.55111744,151.05,151.03,0.8183414]
[1718260793259,9.55111744,151.05,151.03,3.2680414]
[1718260793658,9.55111744,151.05,151.03,0.8183414]
[1718260796458,9.55111744,151.05,151.03,3.2680414]
[1718260796662,9.55111744,151.05,151.03,0.8183414]
[1718260798263,9.55111744,151.05,151.03,3.2681414]
[1718260798857,9.55111744,151.05,151.03,0.8183414]
[1718260800979,17.94111744,151.05,151.03,0.8183414]
[1718260801178,9.55111744,151.05,151.03,0.8183414]
[1718260801373,17.94111744,151.05,151.03,0.8183414]
[1718260801965,8.39,151.04,151.03,0.8183414]
[1718260802461,17.94111744,151.05,151.03,0.8183414]
[1718260802658,9.55111744,151.05,151.03,0.8183414]
[1718260802860,17.94111744,151.05,151.03,0.8183414]
[1718260804191,9.55111744,151.05,151.03,3.2681414]
[1718260804388,9.55111744,151.05,151.03,0.8183414]
[1718260808472,9.55111744,151.05,151.03,3.2679414]
[1718260809569,9.55111744,151.05,151.04,2.4496]
[1718260809769,9.55111744,151.05,151.03,3.2680414]
[1718260809961,9.55111744,151.09,151.03,45.8183414]
[1718260810165,9.55111744,151.09,151.04,8.56]
[1718260810499,17.94111744,151.09,151.04,2.4495]
[1718260811095,9.55111744,151.09,151.05,2.4495]
[1718260811271,17.94111744,151.09,151.05,2.4495]
[1718260811662,17.94111744,151.09,151.04,47.4496]
[1718260811879,17.94111744,151.09,151.04,2.4496]
[1718260813270,17.94111744,151.09,151.05,2.4494]
[1718260813769,17.94111744,151.09,151.04,8.39]
[1718260815285,17.94111744,151.09,151.03,54.3783414]
[1718260817472,17.94111744,151.09,151.04,8.39]
[1718260818190,9.55111744,151.09,151.05,53.39]
[1718260822262,9.55111744,151.07,151.03,0.9883414]
[1718260822470,9.55111744,151.07,151.03,56.8280414]
[1718260824196,9.55111744,151.07,151.03,56.6580414]
[1718260824590,9.55111744,151.09,151.05,2.4495]
[1718260824794,9.55111744,151.09,151.05,55.8395]
[1718260824996,9.55111744,151.09,151.05,10.8395]
[1718260825196,17.94111744,151.09,151.04,2.4496]
[1718260825378,9.55111744,151.07,151.04,10.8396]
[1718260825778,9.55111744,151.09,151.05,2.4494]
[1718260825994,9.55111744,151.09,151.05,47.4494]
[1718260827373,9.55111744,151.09,151.06,10.8393]
[1718260828404,9.55111744,151.09,151.06,8.39]
[1718260828588,9.55111744,151.09,151.07,45.0]
[1718260828786,9.55111744,151.11,151.07,45.0]
[1718260828978,9.55111744,151.13,151.08,0.17]
[1718260829179,9.55111744,151.13,151.11,10.8384]
[1718260829403,6.282,151.19,151.12,10.8383]
[1718260829404,9.55111744,151.17,151.12,10.8383]
[1718260830600,9.55111744,151.19,151.13,8.39]
[1718260830806,9.55111744,151.19,151.14,10.838]
[1718260831102,9.55111744,151.17,151.14,10.838]
[1718260831908,9.55111744,151.17,151.14,8.39]
[1718260832201,17.94111744,151.19,151.14,10.838]
[1718260832411,9.55111744,151.21,151.16,2.4476]
[1718260832710,17.94111744,151.21,151.16,8.39]
[1718260833082,9.55111744,151.21,151.16,8.39]
[1718260833497,9.55111744,151.21,151.17,45.0]
[1718260834254,9.55111744,151.21,151.17,53.39]
[1718260834387,9.55111744,151.21,151.18,8.39]
[1718260834589,9.55111744,151.21,151.18,10.8372]
[1718260835916,9.55111744,151.21,151.18,8.39]
[1718260836077,254.3,151.3,151.17,45.17]
[1718260836078,6.4477,151.39,151.28,2.4457]
[1718260836281,8.39,151.33,151.29,40.68519277]
[1718260836477,33.56,151.36,151.27,2.4458]
[1718260836704,8.39,151.32,151.27,67.4458]
[1718260837002,8.39,151.32,151.28,2.4457]
[1718260838112,8.39,151.33,151.28,2.4457]
[1718260838687,6.4477,151.39,151.28,8.56]
[1718260838994,8.39,151.34,151.29,47.4456]
[1718260839182,6.4477,151.39,151.3,0.17]
[1718260839392,6.4477,151.39,151.31,2.4451]
[1718260839586,8.39,151.36,151.31,47.4451]
[1718260840094,6.4477,151.39,151.31,45.0]
[1718260840293,8.39,151.36,151.31,45.0]
[1718260840524,6.4477,151.39,151.31,47.4453]
[1718260840842,8.39,151.36,151.31,47.4453]
[1718260841019,6.4477,151.39,151.31,47.4453]
[1718260841223,6.4477,151.39,151.32,2.445]
[1718260841417,8.39,151.37,151.32,10.835]
[1718260842239,8.39,151.38,151.32,10.835]
[1718260842815,8.39,151.38,151.32,38.85352611]
[1718260843935,8.39,151.38,151.33,45.0]
[1718260844644,6.4477,151.39,151.33,53.39]
[1718260844829,8.39,151.38,151.33,53.39]
[1718260845338,8.39,151.38,151.33,8.39]
[1718260845546,0.17,151.37,151.33,8.39]
[1718260845741,8.39,151.34,151.26,18.6572]
[1718260845949,8.39,151.32,151.26,27.0472]
[1718260846244,8.39,151.32,151.26,10.8361]
[1718260846540,8.39,151.36,151.26,10.8361]
[1718260846541,8.39,151.31,151.26,2.446]
[1718260846920,25.17,151.36,151.27,2.4458]
[1718260847115,64.83,151.36,151.26,2.446]
[1718260847314,64.83,151.36,151.23,27.272]
[1718260847315,0.17,151.35,151.25,2.4462]
[1718260847632,6.5553,151.32,151.22,2.4467]
[1718260849241,46.2153,151.32,151.19,22.8624]
[1718260849445,20.34,151.31,151.19,22.8624]
[1718260850149,20.34,151.31,151.2,20.0]
[1718260850521,20.34,151.31,151.21,45.0]
[1718260851250,20.0,151.31,151.25,2.4462]
[1718260851738,20.0,151.31,151.21,49.8936]
[1718260851739,20.0,151.31,151.23,2.4465]
[1718260852340,20.0,151.31,151.24,2.4463]
[1718260854029,20.0,151.31,151.23,2.4465]
[1718260855126,20.0,151.31,151.22,2.7867]
[1718260855327,20.0,151.31,151.22,2.4467]
[1718260855535,20.0,151.31,151.24,2.4464]
[1718260857329,6.5553,151.32,151.24,2.4464]
[1718260861656,20.0,151.31,151.22,0.17]
[1718260861824,20.0,151.31,151.22,0.68]
[1718260862657,20.0,151.31,151.21,45.0]
[1718260862844,20.0,151.31,151.21,47.4469]
[1718260863560,20.0,151.31,151.2,20.34]
[1718260863561,20.0,151.31,151.2,2.787]
[1718260863736,20.0,151.31,151.23,2.4464]
[1718260863934,20.0,151.31,151.22,2.4466]
[1718260864143,20.0,151.31,151.23,2.4466]
[1718260865260,20.0,151.31,151.24,2.4463]
[1718260865439,20.0,151.31,151.22,4.8934]
[1718260865637,20.0,151.31,151.24,2.4463]
[1718260866050,20.0,151.31,151.23,49.893]
[1718260866263,6.5553,151.32,151.26,2.446]
[1718260866464,6.5553,151.32,151.25,2.4462]
[1718260866857,8.39,151.31,151.25,10.8362]
[1718260867046,8.39,151.31,151.25,2.4462]
[1718260867368,8.39,151.3,151.25,10.8362]
[1718260867661,8.39,151.3,151.25,8.39]
[1718260867869,8.39,151.3,151.24,8.39]
[1718260868065,8.39,151.29,151.24,10.8364]
[1718260868443,66.0653,151.32,151.21,2.4468]
[1718260868646,8.39,151.27,151.21,10.8368]
[1718260869063,8.39,151.27,151.22,2.4467]
[1718260869285,8.39,151.27,151.23,2.4465]
[1718260869445,8.39,151.28,151.23,2.4465]
[1718260870069,8.39,151.29,151.23,10.8365]
[1718260870268,6.5553,151.32,151.24,10.8364]
[1718260870560,8.39,151.3,151.24,10.8364]
[1718260870882,20.0,151.31,151.25,10.8361]
[1718260871061,8.39,151.31,151.26,2.446]
[1718260871258,6.5553,151.32,151.26,2.446]
[1718260871259,6.5553,151.32,151.26,10.836]
[1718260871565,8.39,151.3,151.23,0.17]
[1718260871770,8.39,151.3,151.25,8.39]
[1718260872161,8.39,151.3,151.24,10.8363]
[1718260872782,6.5553,151.32,151.24,8.39]
[1718260872991,8.39,151.29,151.24,8.39]
[1718260873288,8.39,151.29,151.24,10.8364]
[1718260873456,6.5553,151.32,151.25,2.4462]
[1718260873663,8.39,151.3,151.25,2.4462]
[1718260873873,6.5553,151.32,151.25,2.4462]
[1718260874072,8.39,151.29,151.25,2.4462]
[1718260874459,8.39,151.29,151.24,10.8363]
[1718260874669,8.39,151.29,151.24,2.4463]
[1718260875774,6.5553,151.32,151.25,10.8362]
[1718260876275,8.39,151.3,151.25,10.8362]
[1718260876680,8.39,151.3,151.25,2.4462]
[1718260877966,8.39,151.3,151.26,2.446]
[1718260878178,8.39,151.31,151.25,8.39]
[1718260878375,6.5553,151.32,151.26,53.39]
[1718260878556,6.5553,151.32,151.26,8.39]
[1718260878757,8.39,151.31,151.26,2.446]
[1718260879085,8.39,151.29,151.25,2.4462]
[1718260879261,8.39,151.29,151.24,8.39]
[1718260879467,8.39,151.29,151.23,45.51]
[1718260879670,8.39,151.29,151.25,2.4461]
[1718260879873,8.39,151.3,151.25,2.4461]
[1718260880083,8.39,151.3,151.19,16.4989]
[1718260880285,8.39,151.27,151.23,2.4465]
[1718260880662,8.39,151.27,151.22,2.4466]
[1718260880863,8.39,151.27,151.22,10.8366]
[1718260881076,8.39,151.27,151.19,21.3932]
[1718260881575,8.39,151.27,151.2,45.17]
[1718260881771,8.39,151.27,151.22,8.39]
[1718260881964,6.5553,151.32,151.22,8.39]
[1718260882285,8.39,151.29,151.24,2.4463]
[1718260882480,8.39,151.28,151.24,2.4463]
[1718260882787,8.39,151.28,151.23,2.4465]
[1718260883684,8.39,151.29,151.23,53.39]
[1718260883886,8.39,151.29,151.24,8.39]
[1718260884184,6.5553,151.32,151.26,2.446]
[1718260884384,8.39,151.29,151.25,2.4461]
[1718260884590,8.39,151.3,151.25,2.4461]
[1718260885286,8.39,151.3,151.24,10.8363]
[1718260885463,8.39,151.3,151.25,8.39]
[1718260885668,6.5553,151.32,151.25,10.8361]
[1718260885878,8.39,151.3,151.25,2.4461]
[1718260888084,6.5553,151.32,151.26,8.39]
[1718260888085,14.9453,151.32,151.26,8.39]
[1718260888270,14.9453,151.32,151.26,9.71195714]
[1718260888475,8.39,151.31,151.26,8.39]
[1718260890179,8.39,151.31,151.25,8.73]
[1718260890381,8.39,151.31,151.26,45.0]
[1718260890587,8.39,151.32,151.27,2.4459]
[1718260890787,8.39,151.32,151.26,53.39]
[1718260890974,16.0616,151.34,151.28,10.8357]
[1718260891291,24.4516,151.34,151.28,10.8357]
[1718260891695,8.39,151.33,151.28,10.8357]
[1718260891898,6.2674,151.36,151.27,8.39]
[1718260892189,20.0,151.35,151.29,10.8356]
[1718260892497,28.39,151.35,151.3,10.8354]
[1718260892972,6.2674,151.36,151.3,10.8354]
[1718260893177,8.39,151.35,151.3,2.4454]
[1718260894586,8.39,151.35,151.29,8.39]
[1718260895190,8.39,151.35,151.29,10.8356]
[1718260895785,16.1872,151.38,151.29,10.8356]
[1718260895987,8.39,151.35,151.29,10.8356]
[1718260896876,20.0,151.37,151.29,10.8356]
[1718260897187,8.39,151.35,151.3,2.4454]
[1718260898306,20.0,151.37,151.3,2.4454]
[1718260898475,8.39,151.34,151.28,45.0]
[1718260898800,8.39,151.32,151.27,10.8358]
[1718260899187,8.39,151.32,151.27,2.4458]
[1718260899394,8.39,151.36,151.27,2.4458]
[1718260899575,33.56,151.36,151.27,2.4458]
[1718260900873,33.56,151.36,151.28,2.4457]
[1718260901277,73.24,151.36,151.27,2.4459]
[1718260901595,20.34,151.35,151.27,2.4459]
[1718260902098,20.34,151.35,151.26,10.836]
[1718260902297,20.34,151.35,151.27,2.4459]
[1718260903498,20.0,151.35,151.26,8.39]
[1718260903698,20.0,151.35,151.27,8.39]
[1718260904082,8.39,151.33,151.27,8.39]
[1718260904904,8.39,151.28,151.24,15.7726]
[1718260905208,20.0,151.32,151.23,2.4465]
[1718260905209,8.39,151.27,151.23,2.4465]
[1718260905522,8.39,151.28,151.23,2.4465]
[1718260905873,8.39,151.28,151.22,10.8366]
[1718260906500,8.39,151.28,151.22,10.8367]
[1718260909004,0.34,151.31,151.2,16.5197]
[1718260909212,8.39,151.25,151.2,24.9097]
[1718260909518,8.39,151.23,151.18,8.39]
[1718260909884,8.39,151.23,151.16,18.3348]
[1718260910112,8.39,151.23,151.17,10.8375]
[1718260910310,8.39,151.23,151.16,15.8872]
[1718260910513,8.39,151.21,151.16,24.2772]
[1718260911009,8.39,151.2,151.16,15.8872]
[1718260912509,8.39,151.2,151.15,10.8378]
[1718260912910,8.39,151.21,151.16,10.8377]
[1718260914893,0.17,151.26,151.16,10.8377]
[1718260915095,8.39,151.21,151.15,2.4478]
[1718260915294,8.39,151.21,151.16,8.39]
[1718260919400,8.39,151.21,151.15,8.39]
[1718260919598,8.39,151.21,151.15,10.8378]
[1718260919800,8.39,151.2,151.15,10.8378]
[1718260920529,8.39,151.2,151.15,8.39]
[1718260920700,8.39,151.2,151.13,2.448]
[1718260921012,8.39,151.19,151.12,17.9618]
[1718260921214,8.39,151.18,151.13,10.8381]
[1718260921413,59.51,151.24,151.1,8.6454]
[1718260921414,8.39,151.16,151.1,8.6454]
[1718260921812,8.39,151.16,151.1,2.4486]
[1718260922001,8.39,151.15,151.1,2.4486]
[1718260922201,8.39,151.15,151.1,10.8386]
[1718260922417,8.39,151.15,151.08,16.2355]
[1718260922627,8.39,151.15,151.1,10.8386]
[1718260922801,8.39,151.15,151.1,8.39]
[1718260923003,8.39,151.15,151.1,10.8386]
[1718260923216,8.39,151.15,151.09,2.4487]
[1718260923417,8.39,151.15,151.09,8.39]
[1718260924409,8.39,151.15,151.1,2.4486]
[1718260924724,8.39,151.15,151.1,10.8386]
[1718260925300,8.39,151.16,151.11,8.39]
[1718260925522,8.39,151.17,151.11,8.39]
[1718260926306,8.39,151.16,151.11,8.39]
[1718260926506,8.39,151.16,151.09,0.17]
[1718260926507,8.39,151.16,151.1,8.39]
[1718260927432,8.39,151.16,151.09,0.17]
[1718260927605,8.39,151.15,151.09,45.0]
[1718260927815,8.39,151.14,151.08,16.2355]
[1718260928099,8.39,151.14,151.08,18.6844]
[1718260928333,8.39,151.14,151.08,27.0744]
[1718260928506,8.39,151.14,151.08,18.6844]
[1718260928929,8.39,151.14,151.08,27.0744]
[1718260930209,8.39,151.13,151.07,10.8391]
[1718260931108,8.39,151.12,151.07,2.4491]
[1718260931308,8.39,151.12,151.08,2.449]
[1718260931530,8.39,151.13,151.08,2.449]
[1718260934374,8.39,151.12,151.05,0.17]
[1718260934505,8.39,151.11,151.05,53.39]
[1718260934712,0.34,151.19,151.06,8.56]
[1718260934917,0.17,151.17,151.09,2.4488]
[1718260935105,8.39,151.12,151.09,2.4488]
[1718260935311,8.39,151.12,151.08,2.4489]
[1718260935513,40.02,151.18,151.08,8.39]
[1718260935736,8.39,151.14,151.09,2.4488]
[1718260936043,8.39,151.13,151.09,2.4488]
[1718260936348,8.39,151.13,151.07,53.39]
[1718260937045,8.39,151.13,151.07,45.0]
[1718260937208,8.39,151.13,151.08,2.4489]
[1718260941155,8.39,151.13,151.09,2.4488]
[1718260941342,8.39,151.13,151.08,2.4489]
[1718260943343,8.39,151.13,151.09,2.4488]
[1718260943551,8.39,151.14,151.08,8.39]
[1718260943752,8.39,151.14,151.1,2.4485]
[1718260943932,20.0,151.19,151.11,2.4485]
[1718260944122,8.39,151.15,151.11,2.4485]
[1718260945055,8.39,151.15,151.09,53.39]
[1718260946344,8.39,151.15,151.09,8.39]
[1718260946545,8.39,151.12,151.06,8.39]
[1718260946728,59.85,151.16,151.06,8.39]
[1718260946729,8.39,151.11,151.06,8.39]
[1718260946929,8.39,151.11,151.06,10.8393]
[1718260947541,8.39,151.11,151.07,2.4491]
[1718260948035,8.39,151.12,151.07,2.4491]
[1718260950632,0.17,151.16,151.08,2.4489]
[1718260950949,8.39,151.13,151.08,2.4489]
[1718260951859,20.34,151.16,151.07,8.39]
[1718260951860,20.0,151.16,151.07,8.39]
[1718260952052,8.39,151.14,151.08,53.39]
[1718260953453,8.39,151.13,151.08,45.0]
[1718260954561,8.39,151.13,151.07,8.39]
[1718260954764,8.39,151.12,151.07,2.4491]
[1718260955267,8.39,151.12,151.08,2.4489]
[1718260955662,59.68,151.17,151.08,2.4489]
[1718260955846,8.39,151.12,151.09,2.4487]
[1718260956160,8.39,151.13,151.09,2.4487]
[1718260956361,8.39,151.13,151.08,47.4489]
[1718260957045,8.39,151.13,151.08,2.4489]
[1718260957248,59.68,151.17,151.08,8.39]
[1718260957452,8.39,151.14,151.08,8.39]
[1718260957757,8.39,151.13,151.07,45.0]
[1718260957962,8.39,151.13,151.07,53.39]
[1718260959560,8.39,151.13,151.08,2.4489]
[1718260960366,59.68,151.17,151.08,2.4489]
[1718260960671,8.39,151.14,151.1,2.4486]
[1718260960870,8.39,151.14,151.09,47.4487]
[1718260961052,8.39,151.14,151.09,55.8387]
[1718260961254,8.39,151.14,151.09,47.4487]
[1718260961666,8.39,151.14,151.09,45.0]
[1718260962375,20.0,151.17,151.09,45.0]
[1718260962376,8.39,151.13,151.09,45.0]
[1718260962577,8.39,151.13,151.08,2.4489]
[1718260965378,8.39,151.13,151.06,0.17]
[1718260965582,8.39,151.13,151.07,10.8391]
[1718260965757,8.39,151.13,151.08,2.4489]
[1718260967075,8.39,151.12,151.08,2.4489]
[1718260968373,8.39,151.12,151.07,2.4491]
[1718260969078,8.39,151.12,151.08,2.449]
[1718260969283,8.39,151.13,151.08,2.449]
[1718260969578,20.0,151.17,151.1,2.4486]
[1718260969789,8.39,151.14,151.1,2.4486]